bitfinex/quotes_ETHUSD_20250815
["timestamp","ask_amount","ask_price","bid_price","bid_amount"]
[1755278407566,12.0749377,4388.2,4388.1,1e-08]
[1755278407716,0.47915992,4388.2,4388.1,1e-08]
[1755278407918,1.1902,4389.6,4388.1,0.46280001]
[1755278408133,3.682,4389.5,4388.1,0.77450001]
[1755278408331,3.682,4389.5,4388.2,0.4628]
[1755278408548,3.682,4389.5,4388.1,1e-08]
[1755278408549,0.55,4388.2,4388.1,1e-08]
[1755278408731,0.55,4388.1,4387.1,0.02]
[1755278408933,2.82935813,4387.2,4387.1,0.02]
[1755278409245,2.82935813,4387.2,4385.6,0.499]
[1755278409246,1.1902,4388.1,4385.6,0.499]
[1755278409566,2.28013772,4385.7,4385.6,0.499]
[1755278409865,2.28013772,4385.7,4385.1,1e-08]
[1755278409866,5.8303977,4385.2,4385.1,1e-08]
[1755278410050,3.55,4385.1,4384.1,1e-08]
[1755278410233,3.55,4385.1,4383.1,0.02]
[1755278410234,2.28140574,4383.3,4383.1,0.02]
[1755278410435,4.315,4383.2,4383.1,0.02]
[1755278410635,5.9743,4383.2,4383.1,0.02]
[1755278410833,2.28130236,4383.5,4383.1,0.02]
[1755278410834,2.28092287,4384.2,4383.1,0.4828]
[1755278411034,3.774,4384.1,4383.1,0.4828]
[1755278411570,0.55,4384.0,4383.1,0.02]
[1755278411724,0.17113336,4384.3,4383.1,0.02]
[1755278411926,3.779,4384.2,4383.1,0.02]
[1755278412163,1.1902,4386.1,4383.2,0.6337]
[1755278412466,0.60369848,4386.6,4383.1,0.02]
[1755278412467,2.28018971,4385.6,4383.1,0.02]
[1755278412625,0.55,4384.9,4383.1,0.02]
[1755278412830,0.55,4384.7,4383.2,0.4628]
[1755278413164,2.28123978,4383.6,4383.1,0.02]
[1755278413336,1.6593,4384.6,4383.1,0.02]
[1755278413546,1.20996106,4386.1,4383.6,2.28122745]
[1755278413547,3.852,4384.5,4383.6,2.28122745]
[1755278413853,3.852,4384.5,4383.1,0.02]
[1755278413854,3.853,4384.6,4383.8,3.0]
[1755278414026,1.2102,4386.4,4383.8,3.0]
[1755278414027,1.2102,4386.4,4384.0,3.0]
[1755278414231,3.852,4385.8,4384.9,2.28052809]
[1755278414534,3.852,4385.8,4385.0,0.4628]
[1755278414738,7.74903375,4385.9,4385.0,0.4628]
[1755278414739,5.469,4385.9,4385.0,0.4628]
[1755278414971,5.469,4385.9,4385.1,3.02280449]
[1755278415169,0.02,4386.4,4385.1,3.02280449]
[1755278415170,0.02,4386.4,4385.2,1.14306045]
[1755278415378,3.872,4386.4,4386.3,2.27982582]
[1755278415671,0.02,4386.4,4386.3,2.27982582]
[1755278415967,0.02,4386.4,4386.3,6.06952582]
[1755278416952,0.02,4387.4,4386.4,3.0]
[1755278416953,3.85,4387.3,4386.4,3.0]
[1755278417265,0.02,4387.4,4387.3,2.27930617]
[1755278417763,0.02,4387.4,4387.3,2.74210617]
[1755278417975,0.02,4387.4,4387.1,0.1136]
[1755278418286,1.1902,4387.3,4386.2,0.4628]
[1755278418563,1.1902,4387.3,4385.4,0.001]
[1755278418564,0.55,4387.1,4385.4,0.001]
[1755278418966,4.48503,4387.2,4385.4,0.001]
[1755278418967,0.55,4386.7,4385.4,0.001]
[1755278419296,3.55,4386.9,4385.4,0.001]
[1755278419494,2.2802417,4385.5,4385.4,0.001]
[1755278419699,6.59028174,4385.5,4385.4,0.001]
[1755278420013,8.3435417,4385.5,4385.4,0.001]
[1755278420503,8.8445417,4385.5,4385.4,0.001]
[1755278420995,5.5462,4385.5,4385.4,0.001]
[1755278421202,8.3455417,4385.5,4385.4,0.001]
[1755278421552,8.3465417,4385.5,4385.4,0.001]
[1755278421756,9.40921186,4385.5,4385.4,0.001]
[1755278422071,5.55221186,4385.5,4385.4,0.001]
[1755278422403,9.57702362,4385.5,4385.4,1e-08]
[1755278422570,9.57702362,4385.5,4384.1,0.02]
[1755278422571,2.28091784,4384.2,4384.1,0.02]
[1755278422912,7.14409333,4384.2,4384.1,0.02]
[1755278423061,8.80339333,4384.2,4384.1,0.02]
[1755278423896,8.80339333,4384.2,4383.1,0.02]
[1755278423897,2.83096986,4384.1,4383.1,0.02]
[1755278424086,2.2812136,4383.7,4383.1,0.02]
[1755278424298,2.83143821,4383.2,4383.1,0.02]
[1755278424456,3.39771787,4383.2,4383.1,0.02]
[1755278424658,11.91201787,4383.2,4383.1,1e-08]
[1755278424901,12.38320361,4383.2,4383.1,1e-08]
[1755278425411,6.02820361,4383.2,4383.1,1e-08]
[1755278425692,9.57924335,4383.2,4383.1,1e-08]
[1755278425907,5.72624335,4383.2,4383.1,1e-08]
[1755278426057,9.58024335,4383.2,4383.1,1e-08]
[1755278426260,9.57924335,4383.2,4383.1,1e-08]
[1755278426467,4.82487265,4383.2,4383.1,1e-08]
[1755278426697,3.33143821,4383.2,4383.1,1e-08]
[1755278426906,9.01099575,4383.2,4383.1,1e-08]
[1755278427121,2.28185469,4382.4,4382.3,0.02014589]
[1755278427281,3.86,4382.4,4382.3,0.02014589]
[1755278427484,2.32655754,4383.2,4382.3,0.02014589]
[1755278427674,0.55,4383.0,4382.3,0.02014589]
[1755278427872,2.28185469,4382.4,4382.3,0.02014589]
[1755278428085,6.14185469,4382.4,4382.3,0.02014589]
[1755278428315,0.1144,4382.4,4382.3,0.02014589]
[1755278428625,1.6902,4383.2,4382.3,0.02014589]
[1755278428626,2.28128463,4383.5,4382.4,2.28184864]
[1755278428784,0.1144,4382.6,4382.5,0.77142945]
[1755278428984,0.1144,4382.8,4382.5,1.09292945]
[1755278429311,5.476,4383.6,4382.6,0.7843]
[1755278429511,0.1144,4383.1,4382.6,2.74553935]
[1755278429712,5.476,4383.6,4383.0,2.28154232]
[1755278429872,0.1144,4383.5,4383.1,0.4628]
[1755278430215,0.1144,4383.5,4383.4,2.28133412]
[1755278430412,3.86,4383.6,4383.5,2.28128208]
[1755278430719,2.39558503,4383.7,4382.9,0.1144]
[1755278430916,2.28169849,4382.7,4382.6,0.001]
[1755278431074,6.14469849,4382.7,4382.6,0.001]
[1755278431572,0.47430878,4382.7,4382.6,0.001]
[1755278431882,0.47430878,4382.7,4382.6,0.4638]
[1755278431883,3.865,4382.7,4382.6,0.4638]
[1755278432420,3.865,4382.7,4382.6,0.001]
[1755278432715,3.865,4382.8,4382.6,0.4638]
[1755278432869,3.865,4382.7,4382.6,2.28275023]
[1755278433217,3.863,4383.0,4382.6,0.78097435]
[1755278433384,3.863,4383.0,4382.9,2.28159437]
[1755278433712,3.863,4383.4,4383.1,2.28147541]
[1755278433916,3.863,4383.4,4382.6,0.001]
[1755278434077,2.28169849,4382.7,4382.6,0.001]
[1755278434292,4.931132,4382.7,4382.6,0.001]
[1755278434486,7.19586712,4382.7,4382.6,0.001]
[1755278434691,9.19106268,4382.7,4382.6,0.001]
[1755278434915,9.40516712,4382.7,4382.6,0.001]
[1755278435118,9.40516712,4382.7,4382.3,0.02014589]
[1755278435119,2.28175055,4382.6,4382.3,0.02014589]
[1755278435323,3.475804,4382.4,4382.3,0.02014589]
[1755278435546,3.95139512,4382.4,4382.3,0.02014589]
[1755278435831,3.94367075,4382.4,4382.3,0.02014589]
[1755278436034,5.13387075,4382.4,4382.3,0.02014589]
[1755278436229,2.28195883,4382.2,4382.1,0.02]
[1755278436433,7.81712114,4382.2,4382.1,0.02]
[1755278436632,0.55,4382.1,4380.4,0.4742]
[1755278436835,2.28247968,4381.2,4380.4,0.4742]
[1755278437128,7.41637218,4381.2,4380.4,0.4742]
[1755278437332,6.61903555,4381.2,4380.4,0.4742]
[1755278437533,3.0,4381.1,4378.9,0.4742]
[1755278437735,1.19614251,4380.2,4380.1,1e-08]
[1755278437937,2.87817089,4380.2,4380.1,1e-08]
[1755278438096,6.63155664,4380.2,4380.1,1e-08]
[1755278438496,1.07368825,4380.2,4380.1,0.47420001]
[1755278438841,0.59813238,4381.8,4380.1,0.47420001]
[1755278439007,0.59813238,4381.9,4380.2,3.0]
[1755278439196,0.59813238,4382.0,4381.3,2.28242193]
[1755278439397,0.59813238,4382.0,4380.7,0.4742]
[1755278439598,1.74633238,4382.0,4380.2,0.4742]
[1755278439837,2.28221658,4381.8,4380.2,0.4742]
[1755278440041,6.76628062,4381.9,4380.9,2.28263069]
[1755278440199,4.48413238,4381.9,4380.4,2.28285718]
[1755278440401,0.59813238,4381.7,4380.4,0.57570572]
[1755278440596,3.884,4381.6,4381.5,2.2823234]
[1755278440795,0.79750684,4382.1,4381.5,0.4742]
[1755278440796,0.59813238,4382.1,4381.5,0.4742]
[1755278441028,0.1144,4381.9,4381.6,2.28227131]
[1755278441210,0.1144,4381.9,4381.8,2.28216714]
[1755278441514,0.1144,4381.9,4380.6,3.0]
[1755278441515,2.28291788,4380.4,4379.0,0.4742]
[1755278441712,2.88093581,4380.2,4379.0,0.5886]
[1755278441926,6.90933581,4380.2,4380.1,0.00100001]
[1755278442223,7.45960077,4380.2,4380.1,0.00100001]
[1755278442437,3.54560077,4380.2,4380.1,0.00100001]
[1755278442650,6.30840077,4380.2,4380.1,0.00100001]
[1755278442956,7.45860077,4380.2,4380.1,0.00100001]
[1755278443253,8.05575644,4380.2,4380.1,0.00100001]
[1755278443458,2.39740077,4380.2,4380.1,0.00100001]
[1755278443660,6.31040077,4380.2,4380.1,0.00100001]
[1755278443968,7.45860077,4380.2,4380.1,0.00100001]
[1755278444271,4.59947731,4380.2,4380.1,0.00100001]
[1755278444470,7.45560077,4380.2,4380.1,0.00100001]
[1755278444615,4.54280077,4380.2,4380.1,0.00100001]
[1755278444821,7.90080077,4380.2,4380.1,0.00100001]
[1755278445016,3.54560077,4380.2,4380.1,0.00100001]
[1755278445319,3.911,4380.2,4380.1,0.00100001]
[1755278445518,0.59656093,4380.5,4380.1,0.00100001]
[1755278445755,0.59656093,4380.6,4380.1,0.47520001]
[1755278445916,3.925,4380.5,4380.1,0.75103208]
[1755278446122,0.59656093,4381.4,4380.2,0.4742]
[1755278446361,0.59656093,4381.5,4380.9,2.28261685]
[1755278446517,6.07756093,4381.9,4380.1,0.00100001]
[1755278446721,3.924,4381.8,4381.0,0.4742]
[1755278446954,5.481,4381.9,4381.0,0.4742]
[1755278447133,3.925,4381.8,4381.0,0.4742]
[1755278447337,5.481,4381.9,4381.0,1.04987932]
[1755278447674,0.59656093,4382.1,4381.1,0.4742]
[1755278447992,0.59656093,4383.3,4381.5,2.2823234]
[1755278448157,0.79924672,4383.6,4381.5,2.2823234]
[1755278448158,0.61656093,4383.4,4383.3,2.28138617]
[1755278448471,0.02,4383.4,4383.3,2.28138617]
[1755278448772,0.02,4383.4,4383.3,2.75558617]
[1755278448919,0.02,4383.4,4383.3,3.25929275]
[1755278450461,0.02,4383.4,4382.4,2.2818042]
[1755278450462,0.02,4383.4,4382.4,0.4742]
[1755278450761,4.40721863,4383.3,4383.1,2.28148045]
[1755278450973,0.48021863,4383.2,4382.8,0.4742]
[1755278451138,0.02,4383.4,4383.3,2.28138617]
[1755278451468,0.50036107,4383.4,4383.3,2.28138617]
[1755278451971,0.50036107,4383.4,4383.2,2.28143288]
[1755278452124,0.48036107,4383.3,4383.2,2.28143288]
[1755278452967,0.48036107,4383.3,4383.2,2.28143821]
[1755278453481,0.48036107,4383.3,4382.5,0.4742]
[1755278453623,0.48036107,4383.2,4382.9,2.28158366]
[1755278453971,0.48036107,4383.1,4382.5,0.4742]
[1755278454263,0.48036107,4383.1,4381.7,2.28216874]
[1755278454264,0.48036107,4383.0,4382.7,2.28168137]
[1755278454560,0.59656093,4383.3,4382.7,2.28168137]
[1755278454561,0.48036107,4382.9,4382.8,2.28164643]
[1755278454761,0.48036107,4382.9,4382.8,2.75584643]
[1755278454926,0.02,4383.4,4383.2,2.28143821]
[1755278455122,0.48068001,4383.3,4383.2,2.39583821]
[1755278455321,0.02,4383.4,4383.3,2.28138617]
[1755278455659,0.02,4383.4,4383.3,3.27072861]
[1755278455835,0.1144,4384.0,4383.7,2.28115102]
[1755278456026,0.02,4384.4,4384.3,2.28086581]
[1755278456422,0.02,4384.4,4384.3,5.86946581]
[1755278457974,1e-08,4384.4,4384.3,5.86946581]
[1755278458177,1e-08,4384.4,4384.3,6.68450666]
[1755278459485,1e-08,4384.4,4384.3,7.12010666]
[1755278459773,1e-08,4384.4,4384.3,7.23450666]
[1755278459978,1e-08,4384.4,4384.3,6.68450666]
[1755278460344,1e-08,4385.4,4384.3,37.23450666]
[1755278460569,0.002,4386.9,4386.3,2.27982582]
[1755278460750,0.002,4386.9,4386.8,2.27956597]
[1755278461154,0.002,4386.9,4386.8,5.75376597]
[1755278461734,0.002,4386.9,4386.8,5.27956597]
[1755278463239,1e-08,4386.9,4386.8,5.75376597]
[1755278463438,1e-08,4386.9,4386.8,5.98193411]
[1755278463904,0.02,4388.4,4387.3,2.82930617]
[1755278463905,1e-08,4387.4,4387.3,2.82930617]
[1755278464035,0.02,4388.4,4387.6,0.55]
[1755278464235,0.02,4388.4,4387.5,3.0]
[1755278464236,0.002,4387.8,4387.7,2.27909838]
[1755278464479,0.002,4387.8,4387.7,2.75329838]
[1755278464676,0.002,4387.8,4387.7,3.2912318]
[1755278464883,0.002,4388.3,4388.2,2.2788387]
[1755278465050,0.002,4388.3,4388.0,2.2788999]
[1755278465249,0.002,4388.3,4388.2,2.2788387]
[1755278465652,1e-08,4388.4,4388.3,2.27878677]
[1755278465974,1e-08,4388.4,4388.3,7.63317006]
[1755278466149,1e-08,4388.4,4388.3,7.08317006]
[1755278466476,1e-08,4388.4,4388.3,6.60897006]
[1755278466687,1e-08,4388.4,4388.3,7.59127006]
[1755278466851,1e-08,4388.4,4388.3,31.81010406]
[1755278467050,1e-08,4388.4,4388.3,20.05296406]
[1755278467258,1e-08,4388.4,4388.3,14.80364906]
[1755278467458,1e-08,4388.4,4388.3,6.60897006]
[1755278467754,1e-08,4388.4,4388.3,7.04127006]
[1755278467958,1e-08,4388.4,4388.3,14.68050806]
[1755278468354,1e-08,4388.4,4388.3,10.94127006]
[1755278468638,1e-08,4388.4,4388.3,2.27878677]
[1755278468858,1.14210001,4388.4,4388.3,2.27878677]
[1755278469184,1.58150001,4388.4,4388.2,2.27883059]
[1755278469473,1.5815,4388.3,4388.2,2.27883059]
[1755278469679,1.5815,4388.3,4388.1,2.27889063]
[1755278469883,1.5815,4388.2,4387.3,3.0]
[1755278470082,1.5815,4388.2,4387.5,2.27920227]
[1755278470238,1e-08,4388.4,4388.3,2.27878677]
[1755278470440,1e-08,4388.4,4388.3,2.39238677]
[1755278470872,1e-08,4388.4,4388.3,2.82468677]
[1755278471073,1e-08,4388.4,4388.3,5.82468677]
[1755278471379,1e-08,4388.4,4388.3,10.48734169]
[1755278471537,1e-08,4388.4,4388.3,10.91964169]
[1755278471746,1e-08,4388.4,4388.3,10.48734169]
[1755278472279,1e-08,4388.4,4388.3,5.27878677]
[1755278472589,1.58150001,4388.4,4388.1,2.27888492]
[1755278472890,2.27888186,4388.2,4387.4,2.27923294]
[1755278473090,1.5815,4388.1,4387.6,2.27912983]
[1755278473269,1.5815,4388.1,4387.5,2.27919743]
[1755278473582,1.5815,4388.0,4387.6,2.27910183]
[1755278473787,1.5815,4387.9,4386.9,3.0]
[1755278473951,1.5815,4387.9,4387.5,2.27917626]
[1755278474157,1.5815,4387.8,4386.5,3.891]
[1755278474486,1.14210001,4388.4,4386.7,5.82961793]
[1755278474692,1e-08,4388.4,4388.3,2.27878677]
[1755278475053,1e-08,4388.4,4388.3,9.19257463]
[1755278475262,1e-08,4388.4,4388.3,32.68789977]
[1755278475579,1.1421,4390.8,4390.3,5.27774867]
[1755278476145,0.4394,4391.1,4390.3,5.27774867]
[1755278476349,0.4394,4391.1,4389.3,2.27821819]
[1755278476350,1.6015,4390.4,4389.4,3.0]
[1755278476553,0.02,4390.4,4390.3,2.27774867]
[1755278477771,1.6015,4390.4,4390.3,2.27774867]
[1755278478078,1.6015,4390.4,4389.3,3.0]
[1755278478244,1.1421,4390.3,4389.6,2.27806783]
[1755278478444,2.27795621,4389.9,4387.5,2.27915478]
[1755278478643,2.27810209,4389.7,4387.5,3.0]
[1755278478952,2.27832473,4389.2,4388.3,2.27877281]
[1755278479284,1.5815,4389.1,4388.3,2.27877281]
[1755278479688,1.5815,4389.0,4388.2,2.27879653]
[1755278479859,1.5815,4389.0,4388.1,2.70151091]
[1755278481040,1.5815,4389.0,4388.1,4.98039462]
[1755278481241,1.1421,4388.9,4388.1,4.98039462]
[1755278481570,1.1421,4388.9,4388.2,2.2788387]
[1755278481767,1.1421,4388.9,4388.1,2.70151091]
[1755278481768,0.55,4388.8,4388.1,2.70151091]
[1755278481958,0.4394,4388.8,4388.1,2.70151091]
[1755278482160,3.86012568,4388.7,4387.5,2.27919531]
[1755278482395,0.1136,4388.1,4387.4,0.1136]
[1755278482570,0.1136,4387.8,4387.1,2.29940769]
[1755278482778,1.5815,4387.7,4387.1,0.02]
[1755278482950,0.1136,4387.5,4387.1,0.02]
[1755278483347,1.5815,4387.4,4387.1,0.02]
[1755278483562,0.1136,4387.5,4387.3,2.27930617]
[1755278483774,0.47827559,4388.0,4387.6,2.27910412]
[1755278483973,1.6951,4388.1,4387.4,0.1136]
[1755278484186,1.6951,4388.1,4387.7,2.27907789]
[1755278484503,0.4787215,4388.1,4387.4,0.1136]
[1755278484799,0.1136,4388.3,4387.8,2.39262065]
[1755278484978,2.0602215,4388.2,4387.1,2.29937217]
[1755278485181,4.33911795,4388.1,4387.2,2.27935813]
[1755278485349,0.4787215,4388.0,4387.1,0.02]
[1755278485559,0.4787215,4387.9,4387.1,0.02]
[1755278485892,0.1136,4387.7,4387.1,0.02]
[1755278486056,0.1136,4387.3,4387.1,0.02]
[1755278486257,2.0602215,4387.2,4387.1,0.02]
[1755278486483,2.65745715,4387.2,4387.1,0.02]
[1755278486652,2.0602215,4387.2,4387.1,0.02]
[1755278487382,0.4787215,4387.2,4387.1,2.29941008]
[1755278487990,1.64700223,4388.3,4387.8,2.27904644]
[1755278487991,0.60111226,4387.9,4387.8,2.27904644]
[1755278488248,0.48130572,4387.9,4387.8,2.27904644]
[1755278488513,0.48149061,4388.9,4387.8,2.39264644]
[1755278488677,0.48149061,4388.8,4388.7,2.27857907]
[1755278489479,0.48149061,4388.8,4388.7,0.1136]
[1755278489679,0.48149061,4388.8,4387.6,0.4323]
[1755278489680,4.3415574,4388.8,4387.2,3.0]
[1755278489879,0.1136,4388.1,4387.5,0.1136]
[1755278490082,0.1136,4388.1,4387.1,0.02]
[1755278490083,0.1136,4387.7,4387.1,2.41300083]
[1755278490280,2.06299061,4387.6,4387.1,0.02]
[1755278490581,0.1136,4387.3,4387.1,0.02]
[1755278490809,0.48149061,4387.2,4387.1,0.02]
[1755278491013,2.06299061,4387.2,4387.1,0.02]
[1755278491229,2.50857163,4387.2,4387.1,0.02]
[1755278491527,2.06299061,4387.2,4387.1,0.02]
[1755278491698,5.96999061,4387.2,4387.1,0.02]
[1755278492028,5.53059061,4387.2,4387.1,0.02]
[1755278492193,4.38849061,4387.2,4387.1,0.02]
[1755278492396,4.38849061,4387.2,4387.1,0.021]
[1755278492586,0.48149061,4387.2,4387.1,0.021]
[1755278493437,0.60214088,4387.9,4387.1,0.1346]
[1755278493588,0.48107335,4387.8,4387.5,2.27918057]
[1755278493789,0.1136,4388.2,4387.8,2.2790306]
[1755278494094,0.48110542,4388.1,4388.0,2.27894257]
[1755278494313,3.9,4388.3,4388.0,2.27894257]
[1755278494531,3.9,4388.3,4388.2,2.2788387]
[1755278494845,4.38122143,4388.3,4388.2,2.2788387]
[1755278495363,4.38122143,4388.3,4388.0,0.1136]
[1755278495527,0.48122143,4388.2,4388.1,2.27889063]
[1755278496226,0.71574088,4388.8,4388.0,0.1136]
[1755278496423,0.48131084,4388.7,4388.0,2.39254116]
[1755278496608,0.1136,4388.8,4388.0,0.1136]
[1755278496609,0.48131084,4388.6,4388.0,0.1136]
[1755278496808,0.1136,4388.8,4388.0,0.1136]
[1755278496809,0.48131084,4388.5,4388.0,0.1136]
[1755278497042,2.03891084,4388.4,4388.0,0.1136]
[1755278497350,7.46224377,4388.3,4388.0,0.1136]
[1755278497514,1.08345172,4388.2,4388.0,0.1136]
[1755278497713,0.48131084,4388.1,4387.7,0.001]
[1755278498022,2.27904644,4387.8,4387.7,0.001]
[1755278498235,3.7715352,4387.8,4387.7,0.001]
[1755278498434,7.38718788,4387.8,4387.7,0.001]
[1755278498635,5.49561084,4387.8,4387.7,0.001]
[1755278498820,4.37731084,4387.8,4387.7,0.001]
[1755278499208,0.48131084,4388.0,4387.9,2.2789945]
[1755278499417,0.60176793,4388.5,4388.3,2.27878677]
[1755278499418,0.48131084,4388.4,4388.3,2.27878677]
[1755278499755,3.893,4388.5,4388.3,2.27874102]
[1755278499910,3.893,4388.5,4387.7,0.001]
[1755278500116,0.48131084,4388.4,4387.7,0.001]
[1755278500517,0.48131084,4388.3,4387.7,0.001]
[1755278500753,8.16672283,4388.5,4387.7,0.001]
[1755278500754,2.27893529,4388.1,4387.7,0.001]
[1755278500950,4.37331084,4388.0,4387.7,0.001]
[1755278501142,0.48131084,4387.9,4387.7,0.001]
[1755278501458,0.48131084,4387.8,4387.7,0.001]
[1755278501654,4.52688776,4387.8,4387.7,0.001]
[1755278501949,2.24784132,4387.8,4387.7,0.001]
[1755278502153,4.52688776,4387.8,4387.7,0.001]
[1755278502362,4.31795728,4387.8,4387.7,0.001]
[1755278502517,5.72413985,4387.8,4387.7,0.001]
[1755278502712,6.32590778,4387.8,4387.7,0.001]
[1755278503252,5.72413985,4387.8,4387.7,0.001]
[1755278503456,6.49531483,4387.8,4387.7,0.001]
[1755278503826,6.49532348,4387.8,4387.7,0.001]
[1755278504169,5.89355555,4387.8,4387.7,0.001]
[1755278504321,6.56401264,4387.8,4387.7,0.001]
[1755278504512,6.49532348,4387.8,4387.7,0.001]
[1755278504919,9.56954843,4387.8,4387.7,0.001]
[1755278505763,5.51514138,4387.8,4387.7,0.001]
[1755278505920,9.40014138,4387.8,4387.7,0.001]
[1755278506322,7.12109494,4387.8,4387.7,0.001]
[1755278506765,9.40014138,4387.8,4387.7,0.001]
[1755278507354,9.60963274,4387.8,4387.7,0.001]
[1755278507663,9.72323274,4387.8,4387.7,0.001]
[1755278508370,10.87500067,4387.8,4387.7,0.001]
[1755278508720,10.8769442,4387.8,4387.7,0.001]
[1755278509066,10.27323274,4387.8,4387.7,0.001]
[1755278509448,10.06374138,4387.8,4387.7,0.001]
[1755278509621,9.72343064,4387.8,4387.7,0.001]
[1755278510627,10.8771421,4387.8,4387.7,1e-08]
[1755278510872,28.22851,4387.8,4387.7,1e-08]
[1755278511175,0.55,4387.5,4387.1,1e-08]
[1755278511355,4.20668069,4387.3,4387.1,1e-08]
[1755278511521,6.18004857,4387.2,4387.1,1e-08]
[1755278511726,7.73764857,4387.2,4387.1,1e-08]
[1755278511958,11.60764857,4387.2,4387.1,1e-08]
[1755278513306,12.41145688,4387.2,4387.1,1e-08]
[1755278513467,14.11449276,4387.2,4387.1,1e-08]
[1755278513663,14.66449276,4387.2,4387.1,1e-08]
[1755278513864,5.82961793,4386.7,4386.6,1e-08]
[1755278514064,9.90230719,4386.7,4386.6,1e-08]
[1755278514265,11.94121803,4386.7,4386.6,1e-08]
[1755278514587,13.36329123,4386.7,4386.6,1e-08]
[1755278514797,13.96587351,4386.7,4386.6,1e-08]
[1755278515161,13.36329123,4386.7,4386.6,1e-08]
[1755278517601,13.35329123,4386.7,4386.6,1e-08]
[1755278518419,7.73300197,4386.7,4386.6,1e-08]
[1755278518589,11.79279726,4386.7,4386.6,1e-08]
[1755278518785,13.14160197,4386.7,4386.6,1e-08]
[1755278518988,13.35044411,4386.7,4386.6,1e-08]
[1755278520488,4.18300197,4386.7,4386.6,1e-08]
[1755278520749,6.24221793,4386.7,4386.6,1e-08]
[1755278520925,3.9626,4386.7,4386.6,0.44820001]
[1755278521111,0.1136,4386.7,4386.6,3.78466991]
[1755278521298,0.1136,4386.7,4386.6,0.44820001]
[1755278521494,3.9636,4386.7,4386.6,1e-08]
[1755278521736,2.76074238,4387.7,4386.6,1.50500001]
[1755278521936,3.854,4387.6,4386.6,1.05680001]
[1755278522239,3.854,4387.5,4386.7,0.4482]
[1755278522388,3.854,4387.5,4386.6,1e-08]
[1755278522733,3.854,4387.5,4386.7,0.4482]
[1755278522917,2.27925801,4387.4,4386.7,0.4482]
[1755278523111,3.852,4387.3,4386.7,0.4482]
[1755278523312,2.27926572,4387.4,4386.7,0.4482]
[1755278523631,3.852,4387.2,4386.7,0.4482]
[1755278523801,3.851,4387.1,4386.7,0.4482]
[1755278524148,6.5923,4388.5,4386.6,1e-08]
[1755278524149,3.851,4387.0,4386.6,1e-08]
[1755278524320,3.849,4386.9,4386.6,1e-08]
[1755278524733,2.27957639,4386.8,4386.6,1e-08]
[1755278525026,3.849,4386.9,4386.6,1e-08]
[1755278525232,0.61304015,4387.0,4386.6,1e-08]
[1755278525433,2.27854586,4388.8,4386.7,0.4482]
[1755278525434,3.847,4386.9,4386.7,0.4482]
[1755278525605,3.847,4386.8,4386.7,0.4482]
[1755278525808,2.27961793,4386.7,4386.6,1e-08]
[1755278526007,4.38721793,4386.7,4386.6,1e-08]
[1755278526757,6.12661793,4386.7,4386.6,1e-08]
[1755278527153,2.76226739,4386.7,4386.6,1e-08]
[1755278527353,6.12461793,4386.7,4386.6,1e-08]
[1755278527554,2.27961793,4386.7,4386.6,1e-08]
[1755278527760,6.12461793,4386.7,4386.6,1e-08]
[1755278527973,7.00350207,4386.7,4386.6,1e-08]
[1755278528314,9.62252831,4386.7,4386.6,1e-08]
[1755278528753,9.83195608,4386.7,4386.6,1e-08]
[1755278529622,4.01752888,4386.7,4386.6,1e-08]
[1755278529823,7.16257487,4386.7,4386.6,1e-08]
[1755278530037,7.64510111,4386.7,4386.6,1e-08]
[1755278530242,9.99118022,4386.7,4386.6,1e-08]
[1755278530410,5.97939206,4386.7,4386.6,1e-08]
[1755278530611,9.00318022,4386.7,4386.6,1e-08]
[1755278530856,7.85468022,4386.7,4386.6,1e-08]
[1755278531555,9.44118022,4386.7,4386.6,1e-08]
[1755278531720,9.55478022,4386.7,4386.6,1e-08]
[1755278532286,10.10478022,4386.7,4386.6,1e-08]
[1755278533548,10.70840153,4386.7,4386.6,1e-08]
[1755278534293,14.05378305,4386.7,4386.6,1e-08]
[1755278534502,13.45016174,4386.7,4386.6,1e-08]
[1755278534666,14.65684243,4386.7,4386.6,1e-08]
[1755278535300,2.82987779,4386.2,4386.1,1e-08]
[1755278535493,7.46991188,4386.2,4386.1,1e-08]
[1755278535651,9.53893812,4386.2,4386.1,1e-08]
[1755278536054,10.34476103,4386.2,4386.1,1e-08]
[1755278536392,10.74767248,4386.2,4386.1,1e-08]
[1755278536745,10.8601941,4386.2,4386.1,1e-08]
[1755278537172,10.86018827,4386.2,4386.1,1e-08]
[1755278537485,39.77739919,4386.2,4386.1,1e-08]
[1755278538085,9.77539919,4386.2,4386.1,1e-08]
[1755278538377,10.9844565,4386.2,4386.1,1e-08]
[1755278538773,7.03651312,4386.2,4386.1,1e-08]
[1755278539093,10.98445522,4386.2,4386.1,1e-08]
[1755278539291,12.64645974,4386.2,4386.1,1e-08]
[1755278540203,42.64683875,4386.2,4386.1,1e-08]
[1755278540501,43.98184852,4386.2,4386.1,1e-08]
[1755278540700,43.9818637,4386.2,4386.1,1e-08]
[1755278540905,42.64683875,4386.2,4386.1,1e-08]
[1755278541103,10.03689213,4386.2,4386.1,1e-08]
[1755278541320,12.64683875,4386.2,4386.1,1e-08]
[1755278541494,2.8303977,4385.2,4385.1,0.02]
[1755278541667,7.26987012,4385.2,4385.1,0.02]
[1755278541861,7.75239636,4385.2,4385.1,0.02]
[1755278542063,2.28091784,4384.2,4384.1,0.02]
[1755278542263,0.48252624,4384.6,4384.1,0.02]
[1755278542466,0.80610265,4385.3,4384.1,0.02]
[1755278542467,0.60431342,4385.4,4384.1,1.0505]
[1755278542706,2.28050741,4385.0,4384.1,1.0505]
[1755278543010,3.813,4384.9,4384.2,0.76495204]
[1755278543178,2.88449801,4385.7,4384.2,0.4318]
[1755278543179,2.28086581,4384.3,4384.2,0.4318]
[1755278543379,2.28091784,4384.2,4384.1,0.02]
[1755278543806,3.31482045,4384.2,4384.1,0.02]